[Event "Titled Tuesday Blitz September 13 Early 2022"]
[White "Cardoso Cardoso, Jose Gabriel"]
[Black "Harsha Bharathakoti"]
[WhiteFideId "4430492"]
[BlackFideId "5078776"]
[WhiteElo "2485"]
[BlackElo "2523"]
[Result "0-1"]
[Round "09"]
[TimeControl "180+1"]
[Date "2022.09.13"]
[WhiteClock "0:00:02"]
[BlackClock "0:00:14"]

1. Nf3 {[%clk 0:03:00]}  c5 {[%clk 0:02:56]} 2. e4 {[%clk 0:03:00]}  d6 {[%clk 0:02:52]} 3. d4 {[%clk 0:03:00]}  cxd4 {[%clk 0:02:53]} 4. Nxd4 {[%clk 0:03:01]}  Nf6 {[%clk 0:02:53]} 5. Bb5+ {[%clk 0:03:01]}  Bd7 {[%clk 0:02:48]} 6. c4 {[%clk 0:03:02]}  g6 {[%clk 0:02:47]} 7. Nc3 {[%clk 0:03:01]}  Bg7 {[%clk 0:02:47]} 8. Be3 {[%clk 0:02:57]}  Nc6 {[%clk 0:02:45]} 9. f3 {[%clk 0:02:54]}  O-O {[%clk 0:02:35]} 10. O-O {[%clk 0:02:52]}  Rc8 {[%clk 0:02:30]} 11. Bxc6 {[%clk 0:02:42]}  bxc6 {[%clk 0:02:27]} 12. Qd2 {[%clk 0:02:41]}  a5 {[%clk 0:02:15]} 13. b3 {[%clk 0:02:37]}  Qc7 {[%clk 0:02:10]} 14. Rac1 {[%clk 0:02:34]}  Rfd8 {[%clk 0:01:56]} 15. Rfd1 {[%clk 0:02:34]}  Rb8 {[%clk 0:01:53]} 16. Qf2 {[%clk 0:02:31]}  e5 {[%clk 0:01:48]} 17. Nde2 {[%clk 0:02:28]}  Be6 {[%clk 0:01:42]} 18. Nd5 {[%clk 0:02:22]}  Bxd5 {[%clk 0:01:36]} 19. cxd5 {[%clk 0:02:20]}  c5 {[%clk 0:01:37]} 20. Nc3 {[%clk 0:02:14]}  Rb4 {[%clk 0:01:33]} 21. Na4 {[%clk 0:02:13]}  Nd7 {[%clk 0:01:29]} 22. Qe1 {[%clk 0:02:10]}  Rdb8 {[%clk 0:01:27]} 23. Bd2 {[%clk 0:02:09]}  R4b5 {[%clk 0:01:27]} 24. Nb2 {[%clk 0:02:08]}  Ra8 {[%clk 0:01:24]} 25. Na4 {[%clk 0:02:06]}  Qa7 {[%clk 0:01:10]} 26. Kh1 {[%clk 0:02:04]}  Rbb8 {[%clk 0:01:10]} 27. Rc4 {[%clk 0:01:51]}  Qa6 {[%clk 0:01:09]} 28. Rdc1 {[%clk 0:01:49]}  Rf8 {[%clk 0:01:08]} 29. Qg3 {[%clk 0:01:25]}  Ra7 {[%clk 0:01:04]} 30. Qh3 {[%clk 0:01:11]}  h5 {[%clk 0:00:50]} 31. g4 {[%clk 0:01:09]}  hxg4 {[%clk 0:00:42]} 32. Qxg4 {[%clk 0:01:10]}  Nf6 {[%clk 0:00:42]} 33. Qh3 {[%clk 0:01:07]}  Nh5 {[%clk 0:00:42]} 34. Rg1 {[%clk 0:01:05]}  Qc8 {[%clk 0:00:41]} 35. Qg2 {[%clk 0:00:59]}  Kh7 {[%clk 0:00:40]} 36. Nc3 {[%clk 0:00:58]}  Rb7 {[%clk 0:00:36]} 37. Ne2 {[%clk 0:00:57]}  Bh6 {[%clk 0:00:37]} 38. Bxh6 {[%clk 0:00:42]}  Kxh6 {[%clk 0:00:38]} 39. Qg5+ {[%clk 0:00:42]}  Kh7 {[%clk 0:00:38]} 40. Ng3 {[%clk 0:00:39]}  Qh3 {[%clk 0:00:32]} 41. Rc3 {[%clk 0:00:32]}  Nf4 {[%clk 0:00:32]} 42. Nf5 {[%clk 0:00:24]}  Rd7 {[%clk 0:00:23]} 43. Qf6 {[%clk 0:00:20]}  Rg8 {[%clk 0:00:23]} 44. Nxd6 {[%clk 0:00:18]}  Ne2 {[%clk 0:00:18]} 45. Nxf7 {[%clk 0:00:18]}  Rxf7 {[%clk 0:00:18]} 46. Qxf7+ {[%clk 0:00:18]}  Rg7 {[%clk 0:00:19]} 47. Qe6 {[%clk 0:00:12]}  Qxe6 {[%clk 0:00:18]} 48. dxe6 {[%clk 0:00:13]}  Nxc3 {[%clk 0:00:19]} 49. Rc1 {[%clk 0:00:14]}  Ne2 {[%clk 0:00:18]} 50. Rxc5 {[%clk 0:00:14]}  Nd4 {[%clk 0:00:19]} 51. Kg2 {[%clk 0:00:12]}  Nxe6 {[%clk 0:00:16]} 52. Rxe5 {[%clk 0:00:13]}  Nf4+ {[%clk 0:00:16]} 53. Kg3 {[%clk 0:00:13]}  Ne2+ {[%clk 0:00:15]} 54. Kf2 {[%clk 0:00:13]}  Nc1 {[%clk 0:00:16]} 55. Rxa5 {[%clk 0:00:13]}  Rc7 {[%clk 0:00:17]} 56. b4 {[%clk 0:00:11]}  Rc2+ {[%clk 0:00:15]} 57. Kg3 {[%clk 0:00:11]}  Nxa2 {[%clk 0:00:16]} 58. b5 {[%clk 0:00:11]}  Rb2 {[%clk 0:00:17]} 59. b6 {[%clk 0:00:11]}  Nc3 {[%clk 0:00:17]} 60. Ra7+ {[%clk 0:00:09]}  Kh6 {[%clk 0:00:18]} 61. b7 {[%clk 0:00:10]}  Ne2+ {[%clk 0:00:18]} 62. Kg4 {[%clk 0:00:08]}  Nd4 {[%clk 0:00:18]} 63. h4 {[%clk 0:00:07]}  Nc6 {[%clk 0:00:18]} 64. Ra6 {[%clk 0:00:08]}  Ne5+ {[%clk 0:00:17]} 65. Kf4 {[%clk 0:00:08]}  Nd3+ {[%clk 0:00:18]} 66. Ke3 {[%clk 0:00:08]}  Nc5 {[%clk 0:00:19]} 67. Rc6 {[%clk 0:00:06]}  Nxb7 {[%clk 0:00:18]} 68. f4 {[%clk 0:00:07]}  Na5 {[%clk 0:00:16]} 69. Re6 {[%clk 0:00:04]}  Kg7 {[%clk 0:00:15]} 70. f5 {[%clk 0:00:03]}  gxf5 {[%clk 0:00:16]} 71. exf5 {[%clk 0:00:04]}  Rb4 {[%clk 0:00:16]} 72. h5 {[%clk 0:00:03]}  Nc4+ {[%clk 0:00:13]} 73. Kf4 {[%clk 0:00:03]}  Nd6+ {[%clk 0:00:13]} 74. Ke5 {[%clk 0:00:03]}  Nf7+ {[%clk 0:00:13]} 75. Kd5 {[%clk 0:00:03]}  Rf4 {[%clk 0:00:13]} 76. Rg6+ {[%clk 0:00:03]}  Kf8 {[%clk 0:00:14]} 77. Ke6 {[%clk 0:00:03]}  Re4+ {[%clk 0:00:14]} 78. Kf6 {[%clk 0:00:02]}  Rd4 {[%clk 0:00:14]} 0-1


[Site "https://www.chess.com"]

[Event "Titled Tuesday Blitz September 13 Early 2022"]
[White "Csonka, Balazs"]
[Black "Ibrahimli, Murad"]
[WhiteFideId "742910"]
[BlackFideId "13410229"]
[WhiteElo "2404"]
[BlackElo "2109"]
[Result "1/2-1/2"]
[Round "09"]
[TimeControl "180+1"]
[Date "2022.09.13"]
[WhiteClock "0:00:09"]
[BlackClock "0:00:11"]

1. d4 {[%clk 0:03:00]}  Nf6 {[%clk 0:02:59]} 2. c4 {[%clk 0:03:01]}  g6 {[%clk 0:02:59]} 3. Nc3 {[%clk 0:02:57]}  d5 {[%clk 0:02:59]} 4. cxd5 {[%clk 0:02:46]}  Nxd5 {[%clk 0:03:00]} 5. e4 {[%clk 0:02:46]}  Nxc3 {[%clk 0:03:00]} 6. bxc3 {[%clk 0:02:47]}  Bg7 {[%clk 0:03:01]} 7. Nf3 {[%clk 0:02:47]}  c5 {[%clk 0:03:00]} 8. Rb1 {[%clk 0:02:47]}  O-O {[%clk 0:02:58]} 9. Be2 {[%clk 0:02:47]}  b6 {[%clk 0:02:55]} 10. O-O {[%clk 0:02:47]}  Bb7 {[%clk 0:02:55]} 11. Qd3 {[%clk 0:02:46]}  Qc7 {[%clk 0:02:55]} 12. Bg5 {[%clk 0:02:35]}  Re8 {[%clk 0:02:50]} 13. Rfd1 {[%clk 0:02:12]}  Nd7 {[%clk 0:02:50]} 14. Qe3 {[%clk 0:02:03]}  Rac8 {[%clk 0:02:43]} 15. Bf4 {[%clk 0:01:35]}  e5 {[%clk 0:02:28]} 16. Bg3 {[%clk 0:01:35]}  cxd4 {[%clk 0:01:59]} 17. cxd4 {[%clk 0:01:36]}  Qc3 {[%clk 0:01:59]} 18. Qxc3 {[%clk 0:00:33]}  Rxc3 {[%clk 0:02:00]} 19. d5 {[%clk 0:00:29]}  Nc5 {[%clk 0:01:58]} 20. Bb5 {[%clk 0:00:29]}  Rd8 {[%clk 0:01:57]} 21. Nxe5 {[%clk 0:00:23]}  Rxg3 {[%clk 0:01:55]} 22. Nc6 {[%clk 0:00:23]}  Bxc6 {[%clk 0:00:44]} 23. dxc6 {[%clk 0:00:23]}  Rxd1+ {[%clk 0:00:44]} 24. Rxd1 {[%clk 0:00:24]}  Rc3 {[%clk 0:00:43]} 25. c7 {[%clk 0:00:24]}  Nd3 {[%clk 0:00:35]} 26. Bxd3 {[%clk 0:00:24]}  Rxc7 {[%clk 0:00:36]} 27. Kf1 {[%clk 0:00:24]}  Rc3 {[%clk 0:00:32]} 28. Ke2 {[%clk 0:00:24]}  Ra3 {[%clk 0:00:32]} 29. Rd2 {[%clk 0:00:24]}  Bc3 {[%clk 0:00:32]} 30. Rc2 {[%clk 0:00:24]}  Kg7 {[%clk 0:00:32]} 31. Bc4 {[%clk 0:00:24]}  Bd4 {[%clk 0:00:27]} 32. Bb3 {[%clk 0:00:23]}  Bc5 {[%clk 0:00:27]} 33. Rd2 {[%clk 0:00:22]}  Be7 {[%clk 0:00:20]} 34. Rd7 {[%clk 0:00:21]}  Kf8 {[%clk 0:00:21]} 35. f4 {[%clk 0:00:20]}  b5 {[%clk 0:00:16]} 36. f5 {[%clk 0:00:17]}  gxf5 {[%clk 0:00:15]} 37. exf5 {[%clk 0:00:18]}  f6 {[%clk 0:00:15]} 38. g4 {[%clk 0:00:18]}  a5 {[%clk 0:00:15]} 39. g5 {[%clk 0:00:17]}  a4 {[%clk 0:00:13]} 40. Bd5 {[%clk 0:00:12]}  Ke8 {[%clk 0:00:06]} 41. g6 {[%clk 0:00:08]}  hxg6 {[%clk 0:00:02]} 42. fxg6 {[%clk 0:00:09]}  Bf8 {[%clk 0:00:02]} 43. g7 {[%clk 0:00:09]}  Bxg7 {[%clk 0:00:02]} 44. Rxg7 {[%clk 0:00:10]}  Rh3 {[%clk 0:00:02]} 45. Rg2 {[%clk 0:00:03]}  Kd7 {[%clk 0:00:03]} 46. Kd2 {[%clk 0:00:03]}  Kd6 {[%clk 0:00:03]} 47. Bf7 {[%clk 0:00:04]}  Kc5 {[%clk 0:00:03]} 48. Rf2 {[%clk 0:00:04]}  Kb4 {[%clk 0:00:03]} 49. Rxf6 {[%clk 0:00:03]}  Rxh2+ {[%clk 0:00:04]} 50. Kc1 {[%clk 0:00:03]}  Ka3 {[%clk 0:00:04]} 51. Rf3+ {[%clk 0:00:03]}  Kb4 {[%clk 0:00:05]} 52. a3+ {[%clk 0:00:03]}  Ka5 {[%clk 0:00:05]} 53. Rf5 {[%clk 0:00:03]}  Rh3 {[%clk 0:00:05]} 54. Kb2 {[%clk 0:00:03]}  Rh2+ {[%clk 0:00:04]} 55. Kc3 {[%clk 0:00:04]}  Rh3+ {[%clk 0:00:04]} 56. Kd4 {[%clk 0:00:04]}  Rxa3 {[%clk 0:00:04]} 57. Be8 {[%clk 0:00:04]}  Rb3 {[%clk 0:00:04]} 58. Rxb5+ {[%clk 0:00:03]}  Rxb5 {[%clk 0:00:04]} 59. Bxb5 {[%clk 0:00:04]}  Kxb5 {[%clk 0:00:05]} 60. Kc3 {[%clk 0:00:05]}  Kc5 {[%clk 0:00:06]} 61. Kb2 {[%clk 0:00:05]}  Kb4 {[%clk 0:00:07]} 62. Ka1 {[%clk 0:00:06]}  a3 {[%clk 0:00:07]} 63. Kb1 {[%clk 0:00:07]}  Ka4 {[%clk 0:00:08]} 64. Ka1 {[%clk 0:00:07]}  Kb3 {[%clk 0:00:09]} 65. Kb1 {[%clk 0:00:08]}  a2+ {[%clk 0:00:10]} 66. Ka1 {[%clk 0:00:09]}  Ka3 {[%clk 0:00:11]} 1/2-1/2


[Site "https://www.chess.com"]

[Event "Titled Tuesday Blitz September 13 Early 2022"]
[White "Gokerkan, Cem Kaan"]
[Black "Gurel, Ediz"]
[WhiteFideId "6336760"]
[BlackFideId "44507356"]
[WhiteElo "2364"]
[BlackElo "1894"]
[Result "1-0"]
[Round "09"]
[TimeControl "180+1"]
[Date "2022.09.13"]
[WhiteClock "0:00:32"]
[BlackClock "0:00:01"]

1. e4 {[%clk 0:03:00]}  c5 {[%clk 0:03:00]} 2. Nf3 {[%clk 0:03:01]}  d6 {[%clk 0:02:57]} 3. d4 {[%clk 0:02:59]}  cxd4 {[%clk 0:02:58]} 4. Nxd4 {[%clk 0:03:00]}  Nf6 {[%clk 0:02:59]} 5. Nc3 {[%clk 0:03:00]}  a6 {[%clk 0:03:00]} 6. Bg5 {[%clk 0:03:00]}  Nbd7 {[%clk 0:02:59]} 7. Bc4 {[%clk 0:02:59]}  Qb6 {[%clk 0:02:54]} 8. Qd2 {[%clk 0:02:59]}  e6 {[%clk 0:02:46]} 9. O-O-O {[%clk 0:02:58]}  h6 {[%clk 0:02:45]} 10. Bxf6 {[%clk 0:02:58]}  Nxf6 {[%clk 0:02:45]} 11. f4 {[%clk 0:02:58]}  Be7 {[%clk 0:02:43]} 12. Kb1 {[%clk 0:02:44]}  Qc7 {[%clk 0:02:38]} 13. Bb3 {[%clk 0:02:41]}  b5 {[%clk 0:02:22]} 14. a3 {[%clk 0:02:13]}  O-O {[%clk 0:02:14]} 15. g4 {[%clk 0:02:04]}  Bb7 {[%clk 0:02:12]} 16. Rhe1 {[%clk 0:01:53]}  d5 {[%clk 0:01:07]} 17. exd5 {[%clk 0:01:23]}  Nxd5 {[%clk 0:01:08]} 18. Nxd5 {[%clk 0:01:20]}  Bxd5 {[%clk 0:01:09]} 19. Bxd5 {[%clk 0:01:20]}  exd5 {[%clk 0:01:10]} 20. Nf5 {[%clk 0:01:21]}  Bc5 {[%clk 0:01:10]} 21. Qc3 {[%clk 0:01:05]}  f6 {[%clk 0:00:25]} 22. Re7 {[%clk 0:01:03]}  Qxe7 {[%clk 0:00:25]} 23. Nxe7+ {[%clk 0:01:03]}  Bxe7 {[%clk 0:00:26]} 24. Rxd5 {[%clk 0:01:02]}  Rac8 {[%clk 0:00:26]} 25. Qd3 {[%clk 0:01:01]}  Bc5 {[%clk 0:00:21]} 26. c3 {[%clk 0:00:59]}  Rfe8 {[%clk 0:00:21]} 27. Rd7 {[%clk 0:00:55]}  Bf8 {[%clk 0:00:20]} 28. h4 {[%clk 0:00:53]}  Re1+ {[%clk 0:00:19]} 29. Ka2 {[%clk 0:00:53]}  Rg1 {[%clk 0:00:17]} 30. g5 {[%clk 0:00:51]}  hxg5 {[%clk 0:00:18]} 31. hxg5 {[%clk 0:00:52]}  fxg5 {[%clk 0:00:17]} 32. Qd5+ {[%clk 0:00:52]}  Kh8 {[%clk 0:00:17]} 33. fxg5 {[%clk 0:00:53]}  Rg3 {[%clk 0:00:03]} 34. Qf5 {[%clk 0:00:42]}  Re8 {[%clk 0:00:02]} 35. Rf7 {[%clk 0:00:38]}  Kg8 {[%clk 0:00:02]} 36. g6 {[%clk 0:00:38]}  Rg1 {[%clk 0:00:01]} 37. Qh5 {[%clk 0:00:32]} 1-0


[Site "https://www.chess.com"]

[Event "Titled Tuesday Blitz September 13 Early 2022"]
[White "Harvey, Marcus R"]
[Black "Bortnyk, Olexandr"]
[WhiteFideId "400092"]
[BlackFideId "14120828"]
[WhiteElo "2485"]
[BlackElo "2723"]
[Result "0-1"]
[Round "09"]
[TimeControl "180+1"]
[Date "2022.09.13"]
[WhiteClock "0:00:59"]
[BlackClock "0:01:27"]

1. e4 {[%clk 0:02:59]}  Nf6 {[%clk 0:02:59]} 2. e5 {[%clk 0:02:59]}  Nd5 {[%clk 0:02:59]} 3. d4 {[%clk 0:02:59]}  d6 {[%clk 0:03:00]} 4. c4 {[%clk 0:03:00]}  Nb6 {[%clk 0:03:00]} 5. f4 {[%clk 0:03:00]}  dxe5 {[%clk 0:03:00]} 6. fxe5 {[%clk 0:03:00]}  Bf5 {[%clk 0:03:01]} 7. Nc3 {[%clk 0:02:59]}  e6 {[%clk 0:03:01]} 8. Be3 {[%clk 0:03:00]}  Bb4 {[%clk 0:03:01]} 9. Bd3 {[%clk 0:02:20]}  c5 {[%clk 0:02:49]} 10. Bxf5 {[%clk 0:02:13]}  Nxc4 {[%clk 0:02:34]} 11. Qa4+ {[%clk 0:01:45]}  Nc6 {[%clk 0:01:58]} 12. Bf2 {[%clk 0:01:29]}  exf5 {[%clk 0:01:55]} 13. O-O-O {[%clk 0:01:29]}  Qg5+ {[%clk 0:01:51]} 14. Kb1 {[%clk 0:01:29]}  Qxg2 {[%clk 0:01:51]} 15. Nge2 {[%clk 0:01:19]}  Qxf2 {[%clk 0:01:49]} 16. d5 {[%clk 0:01:15]}  O-O {[%clk 0:01:38]} 17. dxc6 {[%clk 0:01:15]}  bxc6 {[%clk 0:01:37]} 18. a3 {[%clk 0:01:08]}  Nxb2 {[%clk 0:01:34]} 19. Qc2 {[%clk 0:00:59]}  Nxd1 {[%clk 0:01:28]} 20. Rxd1 {[%clk 0:00:58]}  Bxc3 {[%clk 0:01:26]} 21. Nxc3 {[%clk 0:00:58]}  Rab8+ {[%clk 0:01:26]} 22. Kc1 {[%clk 0:00:58]}  Qf4+ {[%clk 0:01:26]} 23. Qd2 {[%clk 0:00:59]}  Qxe5 {[%clk 0:01:27]} 0-1


[Site "https://www.chess.com"]

[Event "Titled Tuesday Blitz September 13 Early 2022"]
[White "Jobava, Baadur"]
[Black "Livaic, Leon"]
[WhiteFideId "13601520"]
[BlackFideId "14531534"]
[WhiteElo "2582"]
[BlackElo "2540"]
[Result "1-0"]
[Round "09"]
[TimeControl "180+1"]
[Date "2022.09.13"]
[WhiteClock "0:01:30"]
[BlackClock "0:00:40"]

1. e4 {[%clk 0:03:00]}  e6 {[%clk 0:02:59]} 2. d4 {[%clk 0:03:00]}  d5 {[%clk 0:03:00]} 3. exd5 {[%clk 0:03:01]}  exd5 {[%clk 0:03:00]} 4. Nf3 {[%clk 0:03:02]}  Nf6 {[%clk 0:03:01]} 5. Bd3 {[%clk 0:03:03]}  Bd6 {[%clk 0:03:01]} 6. O-O {[%clk 0:03:03]}  O-O {[%clk 0:03:02]} 7. h3 {[%clk 0:03:03]}  h6 {[%clk 0:03:02]} 8. Re1 {[%clk 0:03:04]}  Re8 {[%clk 0:03:01]} 9. Rxe8+ {[%clk 0:03:04]}  Qxe8 {[%clk 0:03:02]} 10. Nc3 {[%clk 0:03:05]}  c6 {[%clk 0:03:02]} 11. Ne2 {[%clk 0:03:05]}  Nbd7 {[%clk 0:02:58]} 12. Bf4 {[%clk 0:03:05]}  Qe7 {[%clk 0:02:58]} 13. Qd2 {[%clk 0:03:03]}  Nf8 {[%clk 0:02:55]} 14. Re1 {[%clk 0:03:03]}  Bxf4 {[%clk 0:02:45]} 15. Nxf4 {[%clk 0:03:03]}  Qd6 {[%clk 0:02:45]} 16. Ne5 {[%clk 0:03:02]}  Bd7 {[%clk 0:02:44]} 17. Qa5 {[%clk 0:02:40]}  Ne6 {[%clk 0:02:31]} 18. Nxe6 {[%clk 0:02:33]}  Bxe6 {[%clk 0:02:32]} 19. c3 {[%clk 0:02:22]}  Nd7 {[%clk 0:02:21]} 20. Nf3 {[%clk 0:02:21]}  b6 {[%clk 0:02:09]} 21. Qa6 {[%clk 0:02:17]}  Qc7 {[%clk 0:02:00]} 22. Bc2 {[%clk 0:02:12]}  Re8 {[%clk 0:01:46]} 23. Re3 {[%clk 0:02:10]}  Nb8 {[%clk 0:01:42]} 24. Qd3 {[%clk 0:02:09]}  g6 {[%clk 0:01:40]} 25. Qe2 {[%clk 0:02:04]}  Qc8 {[%clk 0:01:26]} 26. Ne5 {[%clk 0:02:02]}  Bf5 {[%clk 0:01:11]} 27. Bxf5 {[%clk 0:01:46]}  Qxf5 {[%clk 0:01:12]} 28. Nxf7 {[%clk 0:01:42]}  Qb1+ {[%clk 0:01:12]} 29. Kh2 {[%clk 0:01:42]}  Rxe3 {[%clk 0:01:12]} 30. Nxh6+ {[%clk 0:01:42]}  Kg7 {[%clk 0:00:57]} 31. Qxe3 {[%clk 0:01:43]}  Nd7 {[%clk 0:00:54]} 32. Ng4 {[%clk 0:01:42]}  Qe4 {[%clk 0:00:49]} 33. Qxe4 {[%clk 0:01:31]}  dxe4 {[%clk 0:00:50]} 34. Ne5 {[%clk 0:01:30]}  Nf6 {[%clk 0:00:40]} 35. Nxc6 {[%clk 0:01:30]}  e3 {[%clk 0:00:40]} 36. fxe3 {[%clk 0:01:30]} 1-0


[Site "https://www.chess.com"]

[Event "Titled Tuesday Blitz September 13 Early 2022"]
[White "Kosteniuk, Alexandra"]
[Black "Samsonkin, Artiom"]
[WhiteFideId "4128125"]
[BlackFideId "13503111"]
[WhiteElo "2469"]
[BlackElo "2524"]
[Result "1-0"]
[Round "09"]
[TimeControl "180+1"]
[Date "2022.09.13"]
[WhiteClock "0:00:30"]
[BlackClock "0:00:02"]

1. e4 {[%clk 0:03:00]}  c6 {[%clk 0:02:55]} 2. Nc3 {[%clk 0:03:00]}  d5 {[%clk 0:02:55]} 3. Nf3 {[%clk 0:03:01]}  dxe4 {[%clk 0:02:55]} 4. Nxe4 {[%clk 0:03:00]}  Nf6 {[%clk 0:02:56]} 5. Qe2 {[%clk 0:03:00]}  Bg4 {[%clk 0:02:52]} 6. Nxf6+ {[%clk 0:02:57]}  gxf6 {[%clk 0:02:52]} 7. h3 {[%clk 0:02:48]}  Bh5 {[%clk 0:02:52]} 8. d3 {[%clk 0:02:45]}  e6 {[%clk 0:02:46]} 9. Bd2 {[%clk 0:02:44]}  Nd7 {[%clk 0:02:45]} 10. O-O-O {[%clk 0:02:40]}  Bd6 {[%clk 0:02:26]} 11. g4 {[%clk 0:02:39]}  Bg6 {[%clk 0:02:25]} 12. Nd4 {[%clk 0:02:36]}  Qb6 {[%clk 0:02:01]} 13. Be3 {[%clk 0:02:03]}  Bc5 {[%clk 0:01:51]} 14. Nb3 {[%clk 0:02:01]}  Bxe3+ {[%clk 0:01:48]} 15. Qxe3 {[%clk 0:01:56]}  h5 {[%clk 0:01:44]} 16. Be2 {[%clk 0:01:54]}  hxg4 {[%clk 0:01:38]} 17. hxg4 {[%clk 0:01:55]}  Qxe3+ {[%clk 0:01:20]} 18. fxe3 {[%clk 0:01:51]}  Ke7 {[%clk 0:01:21]} 19. Na5 {[%clk 0:01:39]}  Nc5 {[%clk 0:00:45]} 20. Bf3 {[%clk 0:01:31]}  Rxh1 {[%clk 0:00:14]} 21. Rxh1 {[%clk 0:01:29]}  e5 {[%clk 0:00:09]} 22. b4 {[%clk 0:01:26]}  e4 {[%clk 0:00:06]} 23. bxc5 {[%clk 0:01:22]}  exf3 {[%clk 0:00:06]} 24. Kd2 {[%clk 0:01:12]}  b6 {[%clk 0:00:03]} 25. Nxc6+ {[%clk 0:01:09]}  Kd7 {[%clk 0:00:03]} 26. Nd4 {[%clk 0:01:09]}  bxc5 {[%clk 0:00:01]} 27. Nxf3 {[%clk 0:01:10]}  Rb8 {[%clk 0:00:02]} 28. e4 {[%clk 0:01:06]}  Rb2 {[%clk 0:00:02]} 29. Ra1 {[%clk 0:01:03]}  Ke6 {[%clk 0:00:02]} 30. Kc3 {[%clk 0:01:02]}  Rb4 {[%clk 0:00:03]} 31. a3 {[%clk 0:00:59]}  Ra4 {[%clk 0:00:02]} 32. Kb3 {[%clk 0:00:57]}  Ra6 {[%clk 0:00:02]} 33. Kc4 {[%clk 0:00:57]}  Kd6 {[%clk 0:00:01]} 34. a4 {[%clk 0:00:57]}  Rb6 {[%clk 0:00:02]} 35. Kc3 {[%clk 0:00:51]}  Rb8 {[%clk 0:00:01]} 36. a5 {[%clk 0:00:37]}  Rg8 {[%clk 0:00:01]} 37. Rb1 {[%clk 0:00:34]}  Kc6 {[%clk 0:00:02]} 38. Nd2 {[%clk 0:00:30]}  Bh7 {[%clk 0:00:02]} 39. Rf1 {[%clk 0:00:30]} 1-0


[Site "https://www.chess.com"]

[Event "Titled Tuesday Blitz September 13 Early 2022"]
[White "Lin, Dachey"]
[Black "Odegov, Artem"]
[WhiteFideId "2029650"]
[BlackFideId "34183644"]
[WhiteElo "2313"]
[BlackElo "2286"]
[Result "1-0"]
[Round "09"]
[TimeControl "180+1"]
[Date "2022.09.13"]
[WhiteClock "0:01:12"]
[BlackClock "0:00:02"]

1. g4 {[%clk 0:03:00]}  e5 {[%clk 0:02:57]} 2. d4 {[%clk 0:03:01]}  exd4 {[%clk 0:02:52]} 3. Qxd4 {[%clk 0:03:01]}  Nc6 {[%clk 0:02:51]} 4. Qe4+ {[%clk 0:03:02]}  Be7 {[%clk 0:02:50]} 5. Bg2 {[%clk 0:02:59]}  Nf6 {[%clk 0:02:49]} 6. Qa4 {[%clk 0:02:58]}  O-O {[%clk 0:02:46]} 7. g5 {[%clk 0:02:58]}  Ne8 {[%clk 0:02:46]} 8. h4 {[%clk 0:02:43]}  d5 {[%clk 0:02:46]} 9. Nc3 {[%clk 0:02:43]}  Be6 {[%clk 0:02:45]} 10. Nh3 {[%clk 0:02:41]}  Ne5 {[%clk 0:02:33]} 11. Qd4 {[%clk 0:02:37]}  Nc6 {[%clk 0:02:28]} 12. Qd1 {[%clk 0:02:27]}  d4 {[%clk 0:02:28]} 13. Ne4 {[%clk 0:02:28]}  Nd6 {[%clk 0:02:27]} 14. Ng3 {[%clk 0:02:27]}  Qd7 {[%clk 0:02:19]} 15. Nf4 {[%clk 0:02:27]}  Bg4 {[%clk 0:02:09]} 16. Nd3 {[%clk 0:02:18]}  Rae8 {[%clk 0:02:04]} 17. Bxc6 {[%clk 0:02:18]}  Qxc6 {[%clk 0:02:05]} 18. Ne5 {[%clk 0:02:19]}  Qd5 {[%clk 0:01:34]} 19. Nxg4 {[%clk 0:02:16]}  Nf5 {[%clk 0:01:34]} 20. O-O {[%clk 0:02:01]}  Nxh4 {[%clk 0:01:27]} 21. e4 {[%clk 0:01:59]}  Qb5 {[%clk 0:01:13]} 22. e5 {[%clk 0:01:54]}  Qd5 {[%clk 0:01:10]} 23. f3 {[%clk 0:01:50]}  Bc5 {[%clk 0:01:06]} 24. Kh2 {[%clk 0:01:49]}  Ng6 {[%clk 0:00:43]} 25. f4 {[%clk 0:01:43]}  Nh4 {[%clk 0:00:43]} 26. Qe2 {[%clk 0:01:32]}  f6 {[%clk 0:00:40]} 27. gxf6 {[%clk 0:01:30]}  gxf6 {[%clk 0:00:35]} 28. Qe4 {[%clk 0:01:30]}  Qc4 {[%clk 0:00:26]} 29. f5 {[%clk 0:01:26]}  fxe5 {[%clk 0:00:14]} 30. Nh6+ {[%clk 0:01:22]}  Kh8 {[%clk 0:00:09]} 31. Qxh4 {[%clk 0:01:23]}  Qxc2+ {[%clk 0:00:09]} 32. Kh3 {[%clk 0:01:23]}  Be7 {[%clk 0:00:02]} 33. Bg5 {[%clk 0:01:23]}  Bxg5 {[%clk 0:00:02]} 34. Qxg5 {[%clk 0:01:24]}  Qc6 {[%clk 0:00:01]} 35. f6 {[%clk 0:01:24]}  Qe6+ {[%clk 0:00:01]} 36. Rf5 {[%clk 0:01:23]}  Rg8 {[%clk 0:00:01]} 37. Nxg8 {[%clk 0:01:17]}  Rxg8 {[%clk 0:00:02]} 38. Qh5 {[%clk 0:01:15]}  Rf8 {[%clk 0:00:01]} 39. Re1 {[%clk 0:01:13]}  Rxf6 {[%clk 0:00:01]} 40. Rxe5 {[%clk 0:01:13]}  Rxf5 {[%clk 0:00:01]} 41. Rxe6 {[%clk 0:01:12]}  Rxh5+ {[%clk 0:00:02]} 1-0


[Site "https://www.chess.com"]

[Event "Titled Tuesday Blitz September 13 Early 2022"]
[White "Maksimovic, Bojan"]
[Black "Pranav, V"]
[WhiteFideId "14408120"]
[BlackFideId "25060783"]
[WhiteElo "2447"]
[BlackElo "2390"]
[Result "0-1"]
[Round "09"]
[TimeControl "180+1"]
[Date "2022.09.13"]
[WhiteClock "0:00:08"]
[BlackClock "0:01:37"]

1. e4 {[%clk 0:03:00]}  e5 {[%clk 0:02:58]} 2. Nf3 {[%clk 0:03:01]}  Nc6 {[%clk 0:02:59]} 3. Bb5 {[%clk 0:03:01]}  a6 {[%clk 0:02:59]} 4. Ba4 {[%clk 0:03:01]}  Nf6 {[%clk 0:02:59]} 5. O-O {[%clk 0:03:02]}  b5 {[%clk 0:03:00]} 6. Bb3 {[%clk 0:03:02]}  Bc5 {[%clk 0:03:01]} 7. c3 {[%clk 0:03:02]}  d6 {[%clk 0:03:01]} 8. d4 {[%clk 0:03:03]}  Bb6 {[%clk 0:03:02]} 9. Be3 {[%clk 0:03:03]}  O-O {[%clk 0:03:01]} 10. Nbd2 {[%clk 0:03:04]}  h6 {[%clk 0:02:59]} 11. h3 {[%clk 0:03:03]}  Re8 {[%clk 0:02:59]} 12. Re1 {[%clk 0:02:59]}  Bb7 {[%clk 0:02:57]} 13. d5 {[%clk 0:02:57]}  Ne7 {[%clk 0:02:57]} 14. Bxb6 {[%clk 0:02:57]}  cxb6 {[%clk 0:02:58]} 15. Nf1 {[%clk 0:02:57]}  Ng6 {[%clk 0:02:58]} 16. Bc2 {[%clk 0:02:48]}  Nf4 {[%clk 0:02:56]} 17. Kh2 {[%clk 0:02:41]}  Nd7 {[%clk 0:02:44]} 18. g3 {[%clk 0:02:39]}  Ng6 {[%clk 0:02:44]} 19. Ne3 {[%clk 0:02:37]}  Rc8 {[%clk 0:02:43]} 20. Qe2 {[%clk 0:02:24]}  Ngf8 {[%clk 0:02:39]} 21. Nf5 {[%clk 0:02:22]}  Qf6 {[%clk 0:02:35]} 22. Rad1 {[%clk 0:02:13]}  Nc5 {[%clk 0:02:28]} 23. Kg2 {[%clk 0:02:09]}  Rc7 {[%clk 0:02:20]} 24. Nh2 {[%clk 0:02:08]}  Bc8 {[%clk 0:02:18]} 25. Ng4 {[%clk 0:01:55]}  Qd8 {[%clk 0:02:17]} 26. a3 {[%clk 0:01:40]}  Nh7 {[%clk 0:02:10]} 27. Nge3 {[%clk 0:01:19]}  Nf6 {[%clk 0:02:02]} 28. Qf3 {[%clk 0:01:15]}  Nh7 {[%clk 0:02:00]} 29. Kh2 {[%clk 0:01:14]}  Ng5 {[%clk 0:01:51]} 30. Qg2 {[%clk 0:01:10]}  g6 {[%clk 0:01:48]} 31. Nxh6+ {[%clk 0:00:59]}  Kg7 {[%clk 0:01:48]} 32. Nhg4 {[%clk 0:01:00]}  Nxh3 {[%clk 0:01:49]} 33. Qf1 {[%clk 0:00:20]}  Rh8 {[%clk 0:01:43]} 34. Kg2 {[%clk 0:00:21]}  Qg5 {[%clk 0:01:42]} 35. f4 {[%clk 0:00:20]}  exf4 {[%clk 0:01:40]} 36. gxf4 {[%clk 0:00:10]}  Nxf4+ {[%clk 0:01:41]} 37. Kg3 {[%clk 0:00:10]}  Rh3+ {[%clk 0:01:38]} 38. Qxh3 {[%clk 0:00:11]}  Nxh3 {[%clk 0:01:38]} 39. Kxh3 {[%clk 0:00:12]}  Re7 {[%clk 0:01:39]} 40. Rg1 {[%clk 0:00:08]}  Qxe3+ {[%clk 0:01:37]} 0-1


[Site "https://www.chess.com"]